fUSD/lending_fUSD_20250217
["ID","MTS","AMOUNT","RATE_DAILY","PERIOD"]
[353416609,1739819449633,-500.0,0.0001378,2]
[353416610,1739819449644,-500.0,0.0001378,2]
[353416611,1739819449655,-560.81,0.0001378,2]
[353416612,1739819449666,-500.0,0.0001378,2]
[353416614,1739819449676,-500.0,0.0001378,2]
[353416616,1739819449686,-309.02,0.0001378,2]
[353416636,1739819449872,-500.0,0.0001378,2]
[353416639,1739819449884,-500.0,0.0001378,2]
[353416640,1739819449895,-1343.92,0.0001378,2]
[353416643,1739819449905,-520.8,0.0001378,2]
[353416645,1739819449915,-335.57,0.0001378,2]
[353416647,1739819449925,-500.0,0.0001378,2]
[353416649,1739819449934,-500.0,0.0001378,2]
[353416650,1739819449943,-193.59339969,0.0001378,2]
[353416652,1739819449952,-177.47,0.0001378,2]
[353416654,1739819449961,-500.0,0.0001378,2]
[353416656,1739819449971,-500.0,0.0001378,2]
[353416658,1739819449980,-881.11,0.0001378,2]
[353416660,1739819449990,-253.71,0.0001378,2]
[353416662,1739819449999,-500.0,0.0001378,2]
[353416664,1739819450009,-500.0,0.0001378,2]
[353416666,1739819450019,-500.0,0.0001378,2]
[353416668,1739819450032,-500.0,0.0001378,2]
[353416670,1739819450041,-259.93,0.0001378,2]
[353416672,1739819450052,-531.85,0.0001378,2]
[353416675,1739819450061,-500.0,0.0001378,2]
[353416676,1739819450072,-500.0,0.0001378,2]
[353416679,1739819450082,-534.11,0.0001378,2]
[353416680,1739819450092,-500.0,0.0001378,2]
[353416682,1739819450101,-500.0,0.0001378,2]
[353416685,1739819450112,-500.0,0.0001378,2]
[353416687,1739819450123,-500.0,0.0001378,2]
[353416689,1739819450132,-500.0,0.0001378,2]
[353416691,1739819450143,-500.0,0.0001378,2]
[353416693,1739819450152,-500.0,0.0001378,2]
[353416695,1739819450161,-500.0,0.0001378,2]
[353416697,1739819450173,-573.26,0.0001378,2]
[353416699,1739819450183,-1000.0,0.00013789,2]
[353416701,1739819450193,-536.03,0.000138,2]
[353416703,1739819450202,-1900.0,0.000138,5]
[353416705,1739819450212,-500.0,0.00013804,2]
[353416707,1739819450221,-500.0,0.00013804,2]
[353416709,1739819450231,-500.0,0.0001386,2]
[353416711,1739819450240,-500.0,0.0001386,2]
[353416713,1739819450249,-500.0,0.00013861,2]
[353416715,1739819450259,-540.46,0.00013861,2]
[353416717,1739819450268,-500.0,0.00013861,2]
[353416719,1739819450278,-500.0,0.00013861,2]
[353416721,1739819450287,-208.55,0.00013861,2]
[353416723,1739819450297,-500.0,0.00013861,2]
[353416725,1739819450307,-500.0,0.00013861,2]
[353416727,1739819450316,-518.92,0.00013861,2]
[353416729,1739819450326,-706.7,0.00013861,2]
[353416731,1739819450335,-500.0,0.00013861,2]
[353416733,1739819450345,-500.0,0.00013861,2]
[353416735,1739819450355,-534.99,0.00013861,2]
[353416737,1739819450364,-500.0,0.00013861,2]
[353416739,1739819450374,-500.0,0.00013862,2]
[353416741,1739819450383,-500.0,0.00013862,2]
[353416743,1739819450393,-248.59348486,0.00013862,2]
[353416745,1739819450403,-500.0,0.00013863,2]
[353416747,1739819450412,-593.81,0.00013863,2]
[353416749,1739819450422,-259.66,0.00013863,2]
[353416751,1739819450431,-624.24,0.00013863,2]
[353416753,1739819450441,-435.42,0.00013863,2]
[353416755,1739819450450,-364.13,0.00013863,2]
[353416757,1739819450460,-621.3,0.00013863,2]
[353416759,1739819450470,-503.84732713,0.00013863,2]
[353416761,1739819450479,-500.0,0.00013863,2]
[353416763,1739819450489,-500.0,0.00013863,2]
[353416765,1739819450498,-500.0,0.00013863,2]
[353416767,1739819450507,-500.0,0.00013863,2]
[353416769,1739819450517,-500.0,0.00013863,2]
[353416771,1739819450526,-176.01,0.00013863,2]
[353416773,1739819450536,-209.02,0.00013863,2]
[353416775,1739819450545,-500.0,0.00013863,2]
[353416777,1739819450554,-623.58,0.00013863,2]
[353416779,1739819450564,-410.13,0.00013863,2]
[353416781,1739819450573,-500.0,0.00013863,2]
[353416783,1739819450582,-500.0,0.00013863,2]
[353416785,1739819450592,-500.0,0.00013863,2]
[353416787,1739819450601,-500.0,0.00013863,2]
[353416789,1739819450610,-500.0,0.00013863,2]
[353416791,1739819450619,-500.0,0.00013863,2]
[353416793,1739819450629,-614.21,0.00013863,2]
[353416795,1739819450638,-500.0,0.00013863,2]
[353416797,1739819450647,-468.5,0.00013863,2]
[353416799,1739819450656,-500.0,0.00013863,2]
[353416801,1739819450666,-500.0,0.00013863,2]
[353416803,1739819450675,-500.0,0.00013863,2]
[353416805,1739819450684,-500.0,0.00013863,2]
[353416807,1739819450694,-500.0,0.00013863,2]
[353416809,1739819450703,-500.0,0.00013863,2]
[353416811,1739819450713,-500.0,0.00013863,2]
[353416812,1739819450722,-500.0,0.00013863,2]
[353416814,1739819450732,-500.0,0.00013863,2]
[353416816,1739819450742,-500.0,0.00013863,2]
[353416818,1739819450752,-561.92,0.00013863,2]
[353416820,1739819450761,-500.0,0.00013863,2]
[353416822,1739819450770,-500.0,0.00013863,2]
[353416824,1739819450779,-500.0,0.00013863,2]
[353416826,1739819450788,-500.0,0.00013863,2]
[353416828,1739819450798,-500.0,0.00013863,2]
[353416830,1739819450809,-500.0,0.00013863,2]
[353416832,1739819450819,-500.0,0.00013863,2]
[353416833,1739819450828,-500.0,0.00013863,2]
[353416834,1739819450837,-500.0,0.00013863,2]
[353416835,1739819450847,-511.62,0.00013863,2]
[353416836,1739819450855,-500.0,0.00013863,2]
[353416837,1739819450865,-529.7,0.00013863,2]
[353416838,1739819450874,-500.0,0.00013863,2]
[353416839,1739819450883,-500.0,0.00013863,2]
[353416840,1739819450893,-500.0,0.00013863,2]
[353416842,1739819450903,-500.0,0.00013863,2]
[353416844,1739819450912,-316.99,0.00013863,2]
[353416846,1739819450921,-507.7,0.00013863,2]
[353416848,1739819450930,-500.0,0.00013863,2]
[353416850,1739819450940,-500.0,0.00013863,2]
[353416852,1739819450949,-211.68,0.00013863,2]
[353416854,1739819450958,-542.19,0.00013863,2]
[353416856,1739819450970,-500.0,0.00013863,2]
[353416858,1739819450980,-609.38,0.00013863,2]
[353416860,1739819450990,-500.0,0.00013863,2]
[353416862,1739819450999,-500.0,0.00013863,2]
[353416864,1739819451009,-500.0,0.00013863,2]
[353416866,1739819451018,-500.0,0.00013863,2]
[353416868,1739819451027,-500.0,0.00013863,2]
[353416870,1739819451036,-152.77,0.00013863,2]
[353416872,1739819451045,-500.0,0.00013863,2]
[353416874,1739819451056,-585.98,0.00013863,2]
[353416876,1739819451065,-500.0,0.00013863,2]
[353416878,1739819451075,-500.0,0.00013863,2]
[353416880,1739819451084,-500.0,0.00013863,2]
[353416882,1739819451093,-500.0,0.00013863,2]
[353416884,1739819451102,-232.65,0.00013863,2]
[353416886,1739819451111,-500.0,0.00013863,2]
[353416888,1739819451120,-500.0,0.00013863,2]
[353416890,1739819451130,-500.0,0.00013863,2]
[353416892,1739819451139,-200.11,0.00013863,2]
[353416894,1739819451149,-500.0,0.00013863,2]
[353416896,1739819451158,-500.0,0.00013863,2]
[353416898,1739819451167,-500.0,0.00013863,2]
[353416900,1739819451177,-500.0,0.00013863,2]
[353416902,1739819451186,-630.68,0.00013863,2]
[353416904,1739819451196,-500.0,0.00013863,2]
[353416906,1739819451205,-500.0,0.00013863,2]
[353416908,1739819451216,-500.0,0.00013863,2]
[353416910,1739819451225,-418.26,0.00013863,2]
[353416912,1739819451234,-500.0,0.00013863,2]
[353416914,1739819451243,-500.0,0.00013863,2]
[353416916,1739819451253,-500.0,0.00013863,2]
[353416918,1739819451262,-500.0,0.00013863,2]
[353416919,1739819451271,-500.0,0.00013863,2]
[353416921,1739819451280,-500.0,0.00013863,2]
[353416923,1739819451289,-500.0,0.00013863,2]
[353416925,1739819451299,-500.0,0.00013863,2]
[353416927,1739819451307,-500.0,0.00013863,2]
[353416929,1739819451317,-500.0,0.00013863,2]
[353416931,1739819451327,-218.74,0.00013863,2]
[353416933,1739819451336,-224.84,0.00013863,2]
[353416935,1739819451345,-378.89,0.00013863,2]
[353416937,1739819451354,-500.0,0.00013863,2]
[353416939,1739819451364,-500.0,0.00013863,2]
[353416941,1739819451373,-500.0,0.00013863,2]
[353416943,1739819451382,-500.0,0.00013863,2]
[353416945,1739819451392,-500.0,0.00013863,2]
[353416947,1739819451402,-645.32,0.00013863,2]
[353416949,1739819451411,-500.0,0.00013863,2]
[353416951,1739819451420,-465.05238863,0.00013863,2]
[353416953,1739819451430,-500.0,0.00013863,2]
[353416955,1739819451439,-500.0,0.00013863,2]
[353416957,1739819451449,-500.0,0.00013863,2]
[353416959,1739819451459,-285.08632582,0.00013863,2]
[353416961,1739819451470,-500.0,0.00013863,2]
[353416963,1739819451479,-500.0,0.00013863,2]
[353416965,1739819451489,-500.0,0.00013863,2]
[353416967,1739819451498,-500.0,0.00013863,2]
[353416969,1739819451508,-500.0,0.00013863,2]
[353416971,1739819451517,-500.0,0.00013863,2]
[353416973,1739819451526,-163.42,0.00013863,2]
[353416975,1739819451535,-500.0,0.00013863,2]
[353416977,1739819451545,-284.77,0.00013863,2]
[353416979,1739819451554,-500.0,0.00013863,2]
[353416981,1739819451563,-422.37,0.00013863,2]
[353416983,1739819451573,-500.0,0.00013863,2]
[353416985,1739819451582,-500.0,0.00013863,2]
[353416987,1739819451592,-500.0,0.00013863,2]
[353416989,1739819451601,-500.0,0.00013863,2]
[353416991,1739819451611,-500.0,0.00013863,2]
[353416993,1739819451621,-500.0,0.00013863,2]
[353416995,1739819451630,-500.0,0.00013863,2]
[353416997,1739819451640,-640.73259396,0.00013863,2]
[353416999,1739819451649,-500.0,0.00013863,2]
[353417001,1739819451659,-500.0,0.00013863,2]
[353417003,1739819451668,-453.55,0.00013863,2]
[353417005,1739819451677,-746.19,0.00013863,2]
[353417007,1739819451686,-500.0,0.00013863,2]
[353417009,1739819451696,-500.0,0.00013863,2]
[353417011,1739819451706,-682.79,0.00013863,2]
[353417013,1739819451717,-500.0,0.00013863,2]
[353417015,1739819451726,-601.26,0.00013863,2]
[353417017,1739819451735,-500.0,0.00013863,2]
[353417019,1739819451744,-629.02,0.00013863,2]
[353417021,1739819451753,-793.5,0.00013863,2]
[353417023,1739819451762,-500.0,0.00013863,2]
[353417024,1739819451772,-237.117694,0.00013863,2]
[353417026,1739819451781,-500.0,0.00013863,2]
[353417028,1739819451791,-575.57,0.00013863,2]
[353417030,1739819451799,-320.11,0.00013863,2]
[353417033,1739819451813,-347.36983,0.00013863,2]
[353417035,1739819451827,-500.0,0.00013863,2]
[353417037,1739819451840,-500.0,0.00013863,2]
[353417040,1739819451853,-500.0,0.00013863,2]
[353417042,1739819451863,-522.02,0.00013863,2]
[353417044,1739819451873,-995.94,0.00013863,2]
[353417046,1739819451885,-394.82,0.00013863,2]
[353417048,1739819451899,-500.0,0.00013863,2]
[353417051,1739819451911,-249.03,0.00013863,2]
[353417053,1739819451923,-221.86,0.00013863,2]
[353417055,1739819451935,-500.0,0.00013863,2]
[353417057,1739819451948,-500.0,0.00013863,2]
[353417058,1739819451959,-674.47,0.00013863,2]
[353417059,1739819451970,-242.16,0.00013863,2]
[353417060,1739819451981,-619.79,0.00013863,2]
[353417061,1739819451990,-540.26,0.00013863,2]
[353417062,1739819452001,-837.68,0.00013863,2]
[353417063,1739819452013,-500.0,0.00013863,2]
[353417065,1739819452026,-869.39,0.00013863,2]
[353417068,1739819452038,-737.23,0.00013863,2]
[353417070,1739819452050,-990.6,0.00013863,2]
[353417072,1739819452061,-500.0,0.00013863,2]
[353417075,1739819452073,-500.0,0.00013863,2]
[353417077,1739819452085,-620.88,0.00013863,2]
[353417079,1739819452098,-500.0,0.00013863,2]
[353417082,1739819452110,-500.0,0.00013863,2]
[353417084,1739819452122,-620.75,0.00013863,2]
[353417086,1739819452135,-567.42,0.00013863,2]
[353417088,1739819452147,-932.29,0.00013863,2]
[353417091,1739819452159,-531.04,0.00013863,2]
[353417093,1739819452170,-500.0,0.00013863,2]
[353417095,1739819452182,-412.58,0.00013863,2]
[353417097,1739819452194,-500.0,0.00013863,2]
[353417099,1739819452205,-562.88,0.00013863,2]
[353417102,1739819452218,-500.0,0.00013863,2]
[353417104,1739819452230,-2160.61,0.00013863,2]
[353417106,1739819452242,-513.22001522,0.00013863,2]
[353417108,1739819452254,-981.21,0.00013863,2]
[353417110,1739819452266,-208.33,0.00013863,2]
[353417113,1739819452277,-759.6,0.00013863,2]
[353417115,1739819452287,-691.22,0.00013863,2]
[353417117,1739819452297,-557.53,0.00013863,2]
[353417119,1739819452307,-500.0,0.00013863,2]
[353417121,1739819452318,-500.0,0.00013863,2]
[353417124,1739819452331,-500.0,0.00013863,2]
[353417126,1739819452343,-496.73,0.00013863,2]
[353417128,1739819452353,-500.0,0.00013863,2]
[353417130,1739819452363,-671.94,0.00013863,2]
[353417132,1739819452374,-500.0,0.00013863,2]
[353417134,1739819452385,-500.0,0.00013863,2]
[353417136,1739819452395,-601.72,0.00013863,2]
[353417138,1739819452407,-500.0,0.00013863,2]
[353417140,1739819452420,-774.17,0.00013863,2]
[353417143,1739819452432,-482.56,0.00013863,2]
[353417145,1739819452442,-606.36,0.00013863,2]
[353417147,1739819452453,-630.15,0.00013863,2]
[353417149,1739819452466,-713.81,0.00013863,2]
[353417151,1739819452477,-743.54,0.00013863,2]
[353417153,1739819452488,-555.76,0.00013863,2]
[353417155,1739819452499,-500.0,0.00013863,2]
[353417157,1739819452511,-808.89,0.00013863,2]
[353417159,1739819452523,-243.7,0.00013863,2]
[353417162,1739819452535,-948.32,0.00013863,2]
[353417164,1739819452547,-1307.07,0.00013863,2]
[353417166,1739819452559,-940.33,0.00013863,2]
[353417168,1739819452572,-500.0,0.00013863,2]
[353417170,1739819452584,-500.0,0.00013863,2]
[353417172,1739819452596,-500.0,0.00013863,2]
[353417174,1739819452608,-960.33,0.00013863,2]
[353417177,1739819452621,-500.0,0.00013863,2]
[353417179,1739819452633,-500.0,0.00013863,2]
[353417181,1739819452644,-500.0,0.00013863,2]
[353417183,1739819452655,-500.0,0.00013863,2]
[353417185,1739819452667,-301.38,0.00013863,2]
[353417187,1739819452680,-582.92,0.00013863,2]
[353417190,1739819452692,-427.26,0.00013863,2]
[353417192,1739819452704,-500.0,0.00013863,2]
[353417194,1739819452719,-454.39,0.00013863,2]
[353417196,1739819452731,-285.53,0.00013863,2]
[353417198,1739819452743,-500.0,0.00013863,2]
[353417201,1739819452754,-773.81,0.00013863,2]
[353417203,1739819452766,-501.13,0.00013863,2]
[353417205,1739819452778,-500.0,0.00013863,2]
[353417207,1739819452790,-500.0,0.00013863,2]
[353417209,1739819452801,-500.0,0.00013863,2]
[353417212,1739819452814,-500.0,0.00013863,2]
[353417214,1739819452827,-859.31,0.00013863,2]
[353417216,1739819452837,-1058.18,0.00013863,2]
[353417218,1739819452848,-500.0,0.00013863,2]
[353417220,1739819452860,-500.0,0.00013863,2]
[353417222,1739819452871,-651.24,0.00013863,2]
[353417225,1739819452883,-500.0,0.00013863,2]
[353417227,1739819452896,-285.73,0.00013863,2]
[353417229,1739819452907,-541.34,0.00013863,2]
[353417231,1739819452918,-527.78,0.00013863,2]
[353417233,1739819452930,-500.0,0.00013863,2]
[353417236,1739819452941,-589.96,0.00013863,2]
[353417238,1739819452952,-500.0,0.00013863,2]
[353417240,1739819452966,-500.0,0.00013863,2]
[353417242,1739819452977,-560.81,0.00013863,2]
[353417244,1739819452988,-500.0,0.00013863,2]
[353417246,1739819452999,-500.0,0.00013863,2]
[353417248,1739819453011,-500.0,0.00013863,2]
[353417249,1739819453023,-1343.92,0.00013863,2]
[353417250,1739819453035,-520.8,0.00013863,2]
[353417251,1739819453046,-500.0,0.00013863,2]
[353417252,1739819453058,-500.0,0.00013863,2]
[353417253,1739819453069,-500.0,0.00013863,2]
[353417255,1739819453080,-500.0,0.00013863,2]
[353417257,1739819453092,-881.11,0.00013863,2]
[353417259,1739819453103,-500.0,0.00013863,2]
[353417261,1739819453115,-500.0,0.00013863,2]
[353417264,1739819453127,-500.0,0.00013863,2]
[353417266,1739819453138,-531.85,0.00013863,2]
[353417268,1739819453150,-500.0,0.00013863,2]
[353417270,1739819453162,-500.0,0.00013863,2]
[353417272,1739819453174,-534.11,0.00013863,2]
[353417275,1739819453187,-500.0,0.00013863,2]
[353417277,1739819453198,-500.0,0.00013863,2]
[353417279,1739819453209,-500.0,0.00013863,2]
[353417281,1739819453224,-500.0,0.00013863,2]
[353417283,1739819453235,-255.22,0.00013863,2]
[353417285,1739819453246,-500.0,0.00013863,2]
[353417287,1739819453258,-500.0,0.00013863,2]
[353417289,1739819453269,-1610.39248714,0.00013885,2]
[353417292,1739819453281,-798.83002501,0.00013885,2]
[353417294,1739819453293,-3900.0,0.000139,5]
[353417296,1739819453305,-500.0,0.00013943,2]
[353417298,1739819453317,-500.0,0.00013943,2]
[353417301,1739819453329,-500.0,0.00013944,2]
[353417303,1739819453340,-500.0,0.00013944,2]
[353417305,1739819453352,-500.0,0.00013944,2]
[353417307,1739819453363,-540.46,0.00013944,2]
[353417309,1739819453374,-500.0,0.00013944,2]
[353417311,1739819453386,-500.0,0.00013944,2]
[353417313,1739819453397,-500.0,0.00013944,2]
[353417315,1739819453409,-500.0,0.00013944,2]
[353417316,1739819453420,-518.92,0.00013944,2]
[353417317,1739819453431,-500.0,0.00013944,2]
[353417318,1739819453442,-500.0,0.00013944,2]
[353417319,1739819453460,-534.99,0.00013944,2]
[353417320,1739819453479,-500.0,0.00013944,2]
[353417321,1739819453491,-166.14,0.00013945,2]
[353417322,1739819453502,-500.0,0.00013945,2]
[353417323,1739819453515,-500.0,0.00013945,2]
[353417324,1739819453528,-500.0,0.00013945,2]
[353417325,1739819453539,-500.0,0.00013945,2]
[353417326,1739819453550,-500.0,0.00013945,2]
[353417327,1739819453561,-317.2,0.00013945,2]
[353417328,1739819453572,-500.0,0.00013945,2]
[353417329,1739819453583,-500.0,0.00013945,2]
[353417330,1739819453594,-500.0,0.00013945,2]
[353417331,1739819453603,-500.0,0.00013945,2]
[353417332,1739819453612,-500.0,0.00013945,2]
[353417333,1739819453622,-500.0,0.00013945,2]
[353417334,1739819453631,-500.0,0.00013945,2]
[353417335,1739819453640,-500.0,0.00013945,2]
[353417337,1739819453649,-500.0,0.00013945,2]
[353417339,1739819453658,-263.67,0.00013945,2]
[353417340,1739819453667,-500.0,0.00013945,2]
[353417342,1739819453676,-500.0,0.00013945,2]
[353417343,1739819453686,-500.0,0.00013945,2]
[353417345,1739819453695,-500.0,0.00013945,2]
[353417346,1739819453704,-500.0,0.00013945,2]
[353417348,1739819453714,-500.0,0.00013945,2]
[353417350,1739819453724,-500.0,0.00013945,2]
[353417351,1739819453732,-500.0,0.00013945,2]
[353417353,1739819453742,-500.0,0.00013945,2]
[353417355,1739819453752,-500.0,0.00013945,2]
[353417356,1739819453761,-500.0,0.00013945,2]
[353417358,1739819453770,-500.0,0.00013945,2]
[353417359,1739819453779,-329.36,0.00013945,2]
[353417361,1739819453788,-331.47,0.00013945,2]
[353417363,1739819453798,-610.75,0.00013945,2]
[353417364,1739819453807,-500.0,0.00013945,2]
[353417366,1739819453818,-500.0,0.00013945,2]
[353417368,1739819453828,-620.14,0.00013945,2]
[353417369,1739819453837,-500.0,0.00013945,2]
[353417371,1739819453847,-507.69657609,0.00013945,2]
[353417374,1739819453865,-84.31342391,0.00013945,2]
[353417375,1739819453876,-347.57157609,0.00013945,2]
[353417378,1739819453889,-152.42842391,0.00013945,2]
[353417380,1739819453899,-149.57157609,0.00013945,2]
[353417711,1739819731049,155.9332587,0.00020199,120]
[353417712,1739819732007,155.93325868,0.00020199,120]
[353417713,1739819733006,155.93325868,0.00020199,120]
[353417714,1739819734023,155.93325868,0.00020199,120]
[353417715,1739819994732,588.5597,8.256e-05,2]
[353417716,1739820350749,194.56864723,0.000202,120]
[353417718,1739820399904,2089.84,8.314e-05,2]
[353417743,1739820631853,-300.0,8.835e-05,2]
[353417744,1739820631862,-5413.33445006,8.836e-05,2]
[353417745,1739820631894,-4567.5776061,8.836e-05,2]
[353417746,1739820631906,-2356.50920683,8.836e-05,2]
[353417747,1739820631933,-40001.43035623,8.836e-05,2]
[353417748,1739820632040,-487.98348078,8.836e-05,2]
[353417749,1739820632050,-314.33209709,8.836e-05,2]
[353417750,1739820632148,-2176.67193803,8.836e-05,2]
[353417751,1739820632160,-2326.38006488,8.836e-05,2]
[353417752,1739820632170,-222.13774929,8.836e-05,2]
[353417753,1739820632179,-249.9172,8.851e-05,2]
[353417754,1739820632189,-2500.0,8.851e-05,2]
[353417755,1739820632198,-4289.06498583,8.9e-05,2]
[353417756,1739820632210,-11288.67781518,8.9e-05,2]
[353417757,1739820632224,-773.68315289,8.9e-05,2]
[353418085,1739820637752,-643.25932,8.9e-05,2]
[353418086,1739820637765,-2594.50159971,8.9e-05,2]
[353418087,1739820637911,-1313.75354473,8.9e-05,2]
[353418088,1739820637923,-1800.0,8.9e-05,2]
[353418089,1739820637966,-2647.03435636,8.9e-05,2]
[353418091,1739820637975,-1699.922,8.973e-05,2]
[353418093,1739820637985,-634.1154135,9e-05,2]
[353418095,1739820637994,-34.1442983,9.402e-05,2]
[353418300,1739820639834,-115.8557017,9.402e-05,2]
[353418303,1739820639843,-420.0,9.718e-05,2]
[353418306,1739820639853,-150.0,9.719e-05,2]
[353418309,1739820639863,-1000.0,9.968e-05,2]
[353418312,1739820639872,-1000.0,9.968e-05,2]
[353418315,1739820639881,-500.0,9.973e-05,2]
[353418318,1739820639890,-500.0,9.973e-05,2]
[353418321,1739820639900,-202.7678873,9.999e-05,2]
[353418324,1739820639910,-260812.758411,0.0001,2]
[353418328,1739820639943,-1332.17530417,0.0001,2]
[353418331,1739820639954,-1579.87455529,0.0001,2]
[353418647,1739820642989,-462.72,0.0001,2]
[353418648,1739820643002,-556528.54496131,0.0001,2]
[353418650,1739820643014,-1800.0,0.0001,3]
[353418652,1739820643026,-78560.14805066,0.0001,2]
[353418654,1739820643039,-250.0,0.00010016,2]
[353418657,1739820643050,-7958.69,0.00010093,2]
[353418659,1739820643060,-437.99,0.00010137,2]
[353418661,1739820643071,-170.3481224,0.00010521,2]
[353418663,1739820643081,-500.0,0.00010521,2]
[353418665,1739820643092,-2089.84,0.00010578,2]
[353418667,1739820643102,-150.0,0.00010607,2]
[353418669,1739820643113,-500.0,0.00011064,2]
[353418671,1739820643123,-4887.16140899,0.00011099,2]
[353418673,1739820643133,-4887.16140893,0.00011099,2]
[353418675,1739820643144,-4887.16140893,0.00011099,2]
[353418677,1739820643156,-1000.0,0.00011338,2]
[353418679,1739820643166,-1000.0,0.00011338,2]
[353418682,1739820643177,-23900.0,0.0001136,2]
[353418684,1739820643187,-1500.0,0.0001142,2]
[353418686,1739820643198,-1976.9,0.00011422,2]
[353418688,1739820643208,-500.0,0.00011456,2]
[353418690,1739820643219,-426.25,0.00011476,2]
[353418692,1739820643234,-4887.16140893,0.00011558,2]
[353418694,1739820643245,-2751.0,0.00011576,2]
[353418696,1739820643256,-169.16,0.00011596,2]
[353418698,1739820643267,-756.44,0.00011623,2]
[353418702,1739820643278,-2000.0,0.00011667,2]
[353418705,1739820643290,-351.82314972,0.00011675,2]
[353418708,1739820643303,-150.0,0.00011758,2]
[353418711,1739820643313,-44128.0,0.00011791,2]
[353418714,1739820643325,-491.34,0.00011831,2]
[353418718,1739820643336,-219.9,0.00011901,2]
[353418721,1739820643346,-1105.38,0.00011923,2]
[353418725,1739820643357,-2059.52,0.00011981,2]
[353418728,1739820643367,-4887.16140893,0.00012098,2]
[353418731,1739820643378,-506.41,0.000121,2]
[353418734,1739820643388,-502.92,0.000121,2]
[353418737,1739820643399,-492.24,0.000121,2]
[353418740,1739820643410,-350.56,0.00012146,2]
[353418743,1739820643420,-10676.48,0.00012603,2]
[353418746,1739820643432,-4887.16140893,0.00012639,2]
[353418750,1739820643443,-439.11,0.00012676,2]
[353418753,1739820643454,-439.11,0.00012676,2]
[353418756,1739820643465,-437.34,0.00012676,2]
[353418759,1739820643476,-440.13,0.00012696,2]
[353418762,1739820643487,-775.82,0.00012696,2]
[353418766,1739820643497,-448.86,0.00012696,2]
[353418770,1739820643508,-440.13,0.00012696,2]
[353418773,1739820643519,-440.13,0.00012696,2]
[353418776,1739820643530,-869.15,0.00012696,2]
[353418778,1739820643540,-1000.0,0.00012708,2]
[353418780,1739820643551,-1000.0,0.00012708,2]
[353418782,1739820643562,-181.05,0.00012834,2]
[353418785,1739820643572,-2089.84,0.00012842,2]
[353418788,1739820643584,-756.44,0.00013076,2]
[353418791,1739820643595,-4887.16140893,0.00013179,2]
[353418795,1739820643605,-150.0,0.00013315,2]
[353418799,1739820643620,-150.0,0.00013315,2]
[353418802,1739820643632,-274.31934637,0.00013315,2]
[353418806,1739820643644,-150.0,0.00013315,2]
[353418809,1739820643656,-150.00000001,0.00013315,2]
[353418812,1739820643668,-150.0,0.00013315,2]
[353418816,1739820643680,-202.73622945,0.0001336,2]
[353418820,1739820643692,-226.47345786,0.0001337,3]
[353418823,1739820643703,-47343.0130256,0.0001337,2]
[353418827,1739820643715,-153.0,0.00013451,2]
[353418830,1739820643727,-153.0,0.00013451,2]